[Event "Early-Titled-Tuesday-Blitz-August-29-2023"]
[Site "Chess.com"]
[Date "2023.08.29"]
[Round "10"]
[White "isaak2009"]
[Black "vovachesss"]
[Result "1-0"]
[WhiteElo "2571"]
[BlackElo "2764"]
[TimeControl "180+1"]
[EndTime "9:53:50 PDT"]
[Termination "isaak2009 won by checkmate"]

1. d4 {[%clk 0:02:58.3]} 1... d6 {[%clk 0:02:59.4]} 2. e4 {[%clk 0:02:57.1]}
2... Nf6 {[%clk 0:02:59.9]} 3. Nc3 {[%clk 0:02:57.7]} 3... Nbd7 {[%clk 0:03:00]}
4. Nge2 {[%clk 0:02:57.3]} 4... e5 {[%clk 0:02:59.9]} 5. g3 {[%clk 0:02:57.8]}
5... c6 {[%clk 0:02:58.8]} 6. Bg2 {[%clk 0:02:57.4]} 6... b5 {[%clk 0:02:58.9]}
7. a3 {[%clk 0:02:55.7]} 7... Bb7 {[%clk 0:02:58.5]} 8. O-O {[%clk 0:02:56.1]}
8... Be7 {[%clk 0:02:58.5]} 9. h3 {[%clk 0:02:56.6]} 9... O-O {[%clk 0:02:58.4]}
10. Be3 {[%clk 0:02:57.2]} 10... a6 {[%clk 0:02:56.5]} 11. g4 {[%clk 0:02:54.9]}
11... Re8 {[%clk 0:02:45.4]} 12. Ng3 {[%clk 0:02:51.9]} 12... Bf8 {[%clk
0:02:45.1]} 13. Qd2 {[%clk 0:02:51.9]} 13... d5 {[%clk 0:02:08.5]} 14. exd5
{[%clk 0:02:36.8]} 14... Nxd5 {[%clk 0:02:08.2]} 15. Nxd5 {[%clk 0:02:35.7]}
15... cxd5 {[%clk 0:02:09.1]} 16. dxe5 {[%clk 0:02:31.4]} 16... Nxe5 {[%clk
0:02:10]} 17. Bd4 {[%clk 0:02:25.8]} 17... Qc7 {[%clk 0:01:57.9]} 18. f4 {[%clk
0:02:20.9]} 18... Nc4 {[%clk 0:01:54.9]} 19. Qf2 {[%clk 0:02:19.7]} 19... Ne3
{[%clk 0:01:36]} 20. Rfc1 {[%clk 0:01:27.8]} 20... Nxg2 {[%clk 0:00:54.2]} 21.
Kxg2 {[%clk 0:01:28.7]} 21... Rac8 {[%clk 0:00:51.4]} 22. c3 {[%clk 0:01:28.3]}
22... Qc4 {[%clk 0:00:47.2]} 23. Re1 {[%clk 0:01:28.3]} 23... a5 {[%clk
0:00:44.3]} 24. Rxe8 {[%clk 0:01:19.6]} 24... Rxe8 {[%clk 0:00:44.1]} 25. Re1
{[%clk 0:01:19.7]} 25... Rxe1 {[%clk 0:00:44.6]} 26. Qxe1 {[%clk 0:01:20.6]}
26... b4 {[%clk 0:00:45.1]} 27. axb4 {[%clk 0:01:20.6]} 27... axb4 {[%clk
0:00:45.2]} 28. Qe2 {[%clk 0:01:20.5]} 28... Qb3 {[%clk 0:00:36.9]} 29. Nf5
{[%clk 0:01:14.2]} 29... bxc3 {[%clk 0:00:28]} 30. bxc3 {[%clk 0:01:14]} 30...
Qa3 {[%clk 0:00:19.2]} 31. Qe8 {[%clk 0:00:54.9]} 31... h5 {[%clk 0:00:14.4]}
32. gxh5 {[%clk 0:00:43.2]} 32... Qb2+ {[%clk 0:00:12.9]} 33. Kg3 {[%clk
0:00:43.3]} 33... Qa3 {[%clk 0:00:08.2]} 34. Bxg7 {[%clk 0:00:41.3]} 34... d4
{[%clk 0:00:02.9]} 35. Qxf8+ {[%clk 0:00:37.3]} 35... Qxf8 {[%clk 0:00:02.9]}
36. Bxf8 {[%clk 0:00:38.2]} 36... Kxf8 {[%clk 0:00:02.3]} 37. Nxd4 {[%clk
0:00:37.5]} 37... Kg7 {[%clk 0:00:02.1]} 38. c4 {[%clk 0:00:37.1]} 38... Kf6
{[%clk 0:00:02.1]} 39. c5 {[%clk 0:00:37.4]} 39... Bc8 {[%clk 0:00:02.6]} 40. c6
{[%clk 0:00:35.7]} 40... Kg7 {[%clk 0:00:02.5]} 41. Nb5 {[%clk 0:00:33.7]} 41...
Kh6 {[%clk 0:00:02.1]} 42. c7 {[%clk 0:00:33.2]} 42... Kxh5 {[%clk 0:00:01.5]}
43. Nd6 {[%clk 0:00:33.4]} 43... Be6 {[%clk 0:00:02.1]} 44. c8=Q {[%clk
0:00:33.2]} 44... Bxc8 {[%clk 0:00:02.4]} 45. Nxc8 {[%clk 0:00:34.1]} 45... Kg6
{[%clk 0:00:02.7]} 46. Nd6 {[%clk 0:00:34.8]} 46... Kf6 {[%clk 0:00:03.1]} 47.
Ne4+ {[%clk 0:00:34.9]} 47... Kf5 {[%clk 0:00:03.3]} 48. Nf2 {[%clk 0:00:35.8]}
48... f6 {[%clk 0:00:03.4]} 49. Kf3 {[%clk 0:00:36.7]} 49... Kg6 {[%clk
0:00:04.1]} 50. Kg4 {[%clk 0:00:37.2]} 50... f5+ {[%clk 0:00:04.4]} 51. Kf3
{[%clk 0:00:37.6]} 51... Kh6 {[%clk 0:00:05.3]} 52. Kg3 {[%clk 0:00:38.2]} 52...
Kg6 {[%clk 0:00:06.2]} 53. h4 {[%clk 0:00:38.8]} 53... Kf6 {[%clk 0:00:07.1]}
54. h5 {[%clk 0:00:38.8]} 54... Kg7 {[%clk 0:00:05.2]} 55. Kh4 {[%clk
0:00:39.7]} 55... Kh6 {[%clk 0:00:05.9]} 56. Nh3 {[%clk 0:00:39.6]} 56... Kg7
{[%clk 0:00:06.4]} 57. Kg5 {[%clk 0:00:40.5]} 57... Kh7 {[%clk 0:00:06.3]} 58.
Kxf5 {[%clk 0:00:41.4]} 58... Kh6 {[%clk 0:00:06.9]} 59. Kg4 {[%clk 0:00:41.6]}
59... Kg7 {[%clk 0:00:07.1]} 60. Kg5 {[%clk 0:00:42.5]} 60... Kf7 {[%clk
0:00:07.5]} 61. f5 {[%clk 0:00:43.4]} 61... Kg7 {[%clk 0:00:08.3]} 62. f6+
{[%clk 0:00:44.3]} 62... Kh7 {[%clk 0:00:09]} 63. h6 {[%clk 0:00:45.2]} 63...
Kg8 {[%clk 0:00:09.2]} 64. Kg6 {[%clk 0:00:45.9]} 64... Kh8 {[%clk 0:00:10.1]}
65. Ng5 {[%clk 0:00:41.8]} 65... Kg8 {[%clk 0:00:11]} 66. h7+ {[%clk 0:00:42.2]}
66... Kh8 {[%clk 0:00:10.9]} 67. Nf7# {[%clk 0:00:42.4]} 1-0

[Event "Early-Titled-Tuesday-Blitz-August-29-2023"]
[Site "Chess.com"]
[Date "2023.08.29"]
[Round "10"]
[White "Barbus89"]
[Black "attack2mateU"]
[Result "1-0"]
[WhiteElo "2548"]
[BlackElo "2734"]
[TimeControl "180+1"]
[EndTime "9:53:51 PDT"]
[Termination "Barbus89 won by resignation"]

1. Nf3 {[%clk 0:03:00.1]} 1... c5 {[%clk 0:02:59.5]} 2. g3 {[%clk 0:03:00.5]}
2... Nc6 {[%clk 0:02:56.6]} 3. d4 {[%clk 0:03:00.4]} 3... cxd4 {[%clk
0:02:55.8]} 4. Nxd4 {[%clk 0:03:01]} 4... e5 {[%clk 0:02:54.6]} 5. Nxc6 {[%clk
0:02:57.6]} 5... dxc6 {[%clk 0:02:55.5]} 6. Qxd8+ {[%clk 0:02:56.5]} 6... Kxd8
{[%clk 0:02:56.4]} 7. f3 {[%clk 0:02:57.1]} 7... Bc5 {[%clk 0:02:56.1]} 8. e4
{[%clk 0:02:56.9]} 8... Be6 {[%clk 0:02:54.6]} 9. Nd2 {[%clk 0:02:55.8]} 9...
Nf6 {[%clk 0:02:45.7]} 10. Bc4 {[%clk 0:02:54.4]} 10... Ke7 {[%clk 0:02:45.4]}
11. Ke2 {[%clk 0:02:52.9]} 11... b5 {[%clk 0:02:42.7]} 12. Bxe6 {[%clk
0:02:52.2]} 12... Kxe6 {[%clk 0:02:43.6]} 13. a4 {[%clk 0:02:50.3]} 13... a6
{[%clk 0:02:13.9]} 14. Nb3 {[%clk 0:02:47.6]} 14... Nd7 {[%clk 0:02:14.6]} 15.
Bd2 {[%clk 0:02:32.6]} 15... Bb6 {[%clk 0:02:02.7]} 16. Rhd1 {[%clk 0:02:26.4]}
16... Nc5 {[%clk 0:02:01.7]} 17. Nxc5+ {[%clk 0:02:17.7]} 17... Bxc5 {[%clk
0:02:02.6]} 18. Ba5 {[%clk 0:02:17.6]} 18... b4 {[%clk 0:01:55.9]} 19. Kd3
{[%clk 0:01:48]} 19... Rab8 {[%clk 0:01:43.7]} 20. Kc4 {[%clk 0:01:45.5]} 20...
Be7 {[%clk 0:01:43.7]} 21. Rd3 {[%clk 0:01:34.4]} 21... g5 {[%clk 0:01:11.9]}
22. Rad1 {[%clk 0:00:45.7]} 22... h5 {[%clk 0:01:07.2]} 23. Rd7 {[%clk
0:00:42.7]} 23... g4 {[%clk 0:01:01.2]} 24. f4 {[%clk 0:00:42.2]} 24... exf4
{[%clk 0:01:01]} 25. gxf4 {[%clk 0:00:43.1]} 25... Rhe8 {[%clk 0:00:32.5]} 26.
Bc7 {[%clk 0:00:33.5]} 26... Rbc8 {[%clk 0:00:04.6]} 27. Be5 {[%clk 0:00:05.4]}
27... f6 {[%clk 0:00:03.9]} 28. Bc7 {[%clk 0:00:03.8]} 28... h4 {[%clk
0:00:01.8]} 29. f5+ {[%clk 0:00:02.8]} 29... Kf7 {[%clk 0:00:02.3]} 30. R1d6
{[%clk 0:00:02.3]} 30... Kf8 {[%clk 0:00:01.8]} 31. Re6 {[%clk 0:00:02.4]} 31...
Kg8 {[%clk 0:00:01.1]} 32. Rdxe7 {[%clk 0:00:02.1]} 32... Rxe7 {[%clk 0:00:02]}
33. Rxe7 {[%clk 0:00:02.9]} 33... Kf8 {[%clk 0:00:01.5]} 34. Rh7 {[%clk
0:00:02.5]} 34... Kg8 {[%clk 0:00:01.9]} 35. Rd7 {[%clk 0:00:02.9]} 35... h3
{[%clk 0:00:01.4]} 36. Bg3 {[%clk 0:00:02.4]} 36... Re8 {[%clk 0:00:02.3]} 37.
Kd3 {[%clk 0:00:02.7]} 37... c5 {[%clk 0:00:02.6]} 38. e5 {[%clk 0:00:03.5]}
38... fxe5 {[%clk 0:00:01.2]} 39. Ke4 {[%clk 0:00:03.5]} 39... c4 {[%clk
0:00:01.6]} 40. f6 {[%clk 0:00:03.4]} 40... Kf8 {[%clk 0:00:01.5]} 41. f7 {[%clk
0:00:02.6]} 41... Re7 {[%clk 0:00:01.4]} 42. Rxe7 {[%clk 0:00:02.4]} 42... Kxe7
{[%clk 0:00:02.3]} 43. Kxe5 {[%clk 0:00:03.3]} 43... Kxf7 {[%clk 0:00:03.1]} 44.
Kd4 {[%clk 0:00:04.1]} 44... Ke6 {[%clk 0:00:03.6]} 45. Kxc4 {[%clk 0:00:04.6]}
45... a5 {[%clk 0:00:04.5]} 46. Kb5 {[%clk 0:00:05.3]} 1-0

[Event "Early-Titled-Tuesday-Blitz-August-29-2023"]
[Site "Chess.com"]
[Date "2023.08.29"]
[Round "10"]
[White "XDPS"]
[Black "wonderfultime"]
[Result "1-0"]
[WhiteElo "2867"]
[BlackElo "2964"]
[TimeControl "180+1"]
[EndTime "9:53:56 PDT"]
[Termination "XDPS won by resignation"]

1. e4 {[%clk 0:03:00.9]} 1... c5 {[%clk 0:02:55.6]} 2. Nf3 {[%clk 0:02:57.2]}
2... Nf6 {[%clk 0:02:55.3]} 3. e5 {[%clk 0:02:57.8]} 3... Nd5 {[%clk 0:02:55.5]}
4. c3 {[%clk 0:02:58.6]} 4... Nc6 {[%clk 0:02:54.9]} 5. Bc4 {[%clk 0:02:57.3]}
5... Nb6 {[%clk 0:02:54.4]} 6. Bb3 {[%clk 0:02:58]} 6... d5 {[%clk 0:02:55]} 7.
exd6 {[%clk 0:02:58.3]} 7... Qxd6 {[%clk 0:02:55.5]} 8. O-O {[%clk 0:02:57.2]}
8... Be6 {[%clk 0:02:55.7]} 9. Re1 {[%clk 0:02:53.7]} 9... Bxb3 {[%clk
0:02:53.1]} 10. Qxb3 {[%clk 0:02:53.5]} 10... e6 {[%clk 0:02:53.6]} 11. a4
{[%clk 0:02:53]} 11... Qd5 {[%clk 0:02:40.3]} 12. Qb5 {[%clk 0:02:34.3]} 12...
c4 {[%clk 0:02:37.9]} 13. Na3 {[%clk 0:02:27.8]} 13... Bc5 {[%clk 0:02:30.5]}
14. d4 {[%clk 0:02:08.3]} 14... cxd3 {[%clk 0:02:29.1]} 15. Re5 {[%clk
0:02:08.2]} 15... Bxf2+ {[%clk 0:01:05.3]} 16. Kxf2 {[%clk 0:02:08]} 16... Qd6
{[%clk 0:01:01.4]} 17. Re3 {[%clk 0:01:41.8]} 17... Rd8 {[%clk 0:00:55.3]} 18.
a5 {[%clk 0:01:39.4]} 18... Nd5 {[%clk 0:00:54.1]} 19. Rxd3 {[%clk 0:01:39.4]}
19... O-O {[%clk 0:00:53.6]} 20. Nc4 {[%clk 0:01:28.1]} 20... Qc7 {[%clk
0:00:52.2]} 21. a6 {[%clk 0:00:55]} 21... b6 {[%clk 0:00:47.8]} 22. Be3 {[%clk
0:00:44.8]} 22... Nxe3 {[%clk 0:00:46.6]} 23. Nxe3 {[%clk 0:00:39]} 23... e5
{[%clk 0:00:37.9]} 24. Rxd8 {[%clk 0:00:36.7]} 24... Nxd8 {[%clk 0:00:32.4]} 25.
Qxe5 {[%clk 0:00:35.5]} 25... Qc8 {[%clk 0:00:29.3]} 26. Nd5 {[%clk 0:00:33.5]}
26... Kh8 {[%clk 0:00:26.8]} 27. Re1 {[%clk 0:00:27]} 27... Ne6 {[%clk
0:00:25.9]} 28. Nb4 {[%clk 0:00:25.4]} 28... h6 {[%clk 0:00:24.3]} 29. Nd4
{[%clk 0:00:24.5]} 29... Nc5 {[%clk 0:00:19.3]} 30. Kg1 {[%clk 0:00:24.6]} 30...
Qd7 {[%clk 0:00:16.1]} 31. Qe7 {[%clk 0:00:24]} 31... Qc8 {[%clk 0:00:15.4]} 32.
Qxa7 {[%clk 0:00:16.1]} 32... Re8 {[%clk 0:00:16]} 33. Re7 {[%clk 0:00:10.5]}
33... Kh7 {[%clk 0:00:09.4]} 34. Nbc6 {[%clk 0:00:07.8]} 34... Qg4 {[%clk
0:00:08.2]} 35. Rxe8 {[%clk 0:00:06.6]} 35... Qd1+ {[%clk 0:00:08.8]} 36. Kf2
{[%clk 0:00:05.7]} 36... Nd3+ {[%clk 0:00:09.4]} 37. Ke3 {[%clk 0:00:05.3]}
37... Nxb2 {[%clk 0:00:06.4]} 38. Kf4 {[%clk 0:00:03.9]} 38... Qh5 {[%clk
0:00:04.1]} 39. Re5 {[%clk 0:00:03.7]} 39... Nd3+ {[%clk 0:00:03.9]} 40. Ke4
{[%clk 0:00:04.4]} 40... Nf2+ {[%clk 0:00:04.6]} 41. Kd5 {[%clk 0:00:04.3]}
41... Qg6 {[%clk 0:00:02.7]} 42. Qd7 {[%clk 0:00:04.6]} 42... Qxg2+ {[%clk
0:00:03.1]} 43. Kc4 {[%clk 0:00:04.7]} 43... Qf1+ {[%clk 0:00:03.8]} 44. Re2
{[%clk 0:00:05.1]} 44... Qb1 {[%clk 0:00:04.2]} 45. Qf5+ {[%clk 0:00:05.3]}
45... Qxf5 {[%clk 0:00:04.7]} 46. Nxf5 {[%clk 0:00:06.2]} 1-0

[Event "Early-Titled-Tuesday-Blitz-August-29-2023"]
[Site "Chess.com"]
[Date "2023.08.29"]
[Round "10"]
[White "aghasiyevkamal"]
[Black "WildTricks"]
[Result "0-1"]
[WhiteElo "2498"]
[BlackElo "2649"]
[TimeControl "180+1"]
[EndTime "9:53:57 PDT"]
[Termination "WildTricks won on time"]

1. d4 {[%clk 0:03:00.9]} 1... Nf6 {[%clk 0:02:59.5]} 2. c4 {[%clk 0:03:00.7]}
2... e6 {[%clk 0:02:58.9]} 3. Nf3 {[%clk 0:03:00.6]} 3... c5 {[%clk 0:02:58.9]}
4. d5 {[%clk 0:02:59.9]} 4... exd5 {[%clk 0:02:59.8]} 5. cxd5 {[%clk 0:03:00.2]}
5... d6 {[%clk 0:03:00.7]} 6. Nc3 {[%clk 0:02:59.3]} 6... g6 {[%clk 0:03:01.3]}
7. e4 {[%clk 0:02:59.3]} 7... Bg7 {[%clk 0:03:01.4]} 8. h3 {[%clk 0:02:59.2]}
8... O-O {[%clk 0:03:01]} 9. Be3 {[%clk 0:02:58.8]} 9... Re8 {[%clk 0:02:52.3]}
10. Nd2 {[%clk 0:02:52.1]} 10... a6 {[%clk 0:02:21.4]} 11. a4 {[%clk 0:02:47.4]}
11... Nxe4 {[%clk 0:02:14.6]} 12. Ndxe4 {[%clk 0:02:42.6]} 12... f5 {[%clk
0:02:14.5]} 13. Be2 {[%clk 0:02:28.3]} 13... fxe4 {[%clk 0:02:13.5]} 14. O-O
{[%clk 0:02:28.5]} 14... Nd7 {[%clk 0:02:12.6]} 15. a5 {[%clk 0:02:22.4]} 15...
Nf6 {[%clk 0:02:11.9]} 16. Qb3 {[%clk 0:02:21.6]} 16... Rb8 {[%clk 0:02:08]} 17.
Na4 {[%clk 0:02:21.2]} 17... Nd7 {[%clk 0:01:52.6]} 18. Qc2 {[%clk 0:02:14.6]}
18... b5 {[%clk 0:01:47.3]} 19. axb6 {[%clk 0:02:00.2]} 19... Nxb6 {[%clk
0:01:47.2]} 20. Nc3 {[%clk 0:01:54.4]} 20... a5 {[%clk 0:01:37]} 21. Rfd1 {[%clk
0:01:51.1]} 21... Bd7 {[%clk 0:01:23.8]} 22. Qd2 {[%clk 0:01:17.2]} 22... a4
{[%clk 0:01:21]} 23. Bg5 {[%clk 0:01:16.3]} 23... Qc8 {[%clk 0:01:10.4]} 24. Qf4
{[%clk 0:01:11.3]} 24... Be5 {[%clk 0:00:49.5]} 25. Qh4 {[%clk 0:01:09.4]} 25...
Bf5 {[%clk 0:00:46.3]} 26. g4 {[%clk 0:01:05.7]} 26... Bd7 {[%clk 0:00:44.2]}
27. Nxe4 {[%clk 0:00:51.3]} 27... Bxb2 {[%clk 0:00:30.7]} 28. Nxd6 {[%clk
0:00:51.2]} 28... Qc7 {[%clk 0:00:30]} 29. Nxe8 {[%clk 0:00:48]} 29... Rxe8
{[%clk 0:00:30.9]} 30. d6 {[%clk 0:00:43.9]} 30... Qc6 {[%clk 0:00:17.2]} 31.
Be7 {[%clk 0:00:44.1]} 31... a3 {[%clk 0:00:10.4]} 32. Rab1 {[%clk 0:00:38.3]}
32... Qe4 {[%clk 0:00:09.8]} 33. Bf1 {[%clk 0:00:30.9]} 33... Bc6 {[%clk
0:00:09.3]} 34. f3 {[%clk 0:00:21]} 34... Qxf3 {[%clk 0:00:08.3]} 35. Rd2 {[%clk
0:00:16.8]} 35... Qh1+ {[%clk 0:00:04.8]} 36. Kf2 {[%clk 0:00:16.9]} 36... Qh2+
{[%clk 0:00:04]} 37. Ke1 {[%clk 0:00:17.3]} 37... Bc3 {[%clk 0:00:04.1]} 38. Be2
{[%clk 0:00:13.1]} 38... a2 {[%clk 0:00:02]} 39. Rd1 {[%clk 0:00:07.4]} 39...
Qg1+ {[%clk 0:00:02.1]} 40. Bf1 {[%clk 0:00:07.8]} 40... Bxd2+ {[%clk
0:00:02.2]} 41. Kxd2 {[%clk 0:00:07.9]} 41... Qd4+ {[%clk 0:00:02.8]} 42. Kc2
{[%clk 0:00:07]} 42... a1=Q {[%clk 0:00:03.7]} 43. Rxa1 {[%clk 0:00:07.2]} 43...
Qxa1 {[%clk 0:00:03.4]} 0-1

[Event "Early-Titled-Tuesday-Blitz-August-29-2023"]
[Site "Chess.com"]
[Date "2023.08.29"]
[Round "10"]
[White "IljaZaragatski"]
[Black "Ducke13"]
[Result "1-0"]
[WhiteElo "2600"]
[BlackElo "2422"]
[TimeControl "180+1"]
[EndTime "9:53:57 PDT"]
[Termination "IljaZaragatski won by checkmate"]

1. e4 {[%clk 0:02:59]} 1... c5 {[%clk 0:02:47.3]} 2. Nf3 {[%clk 0:02:58.6]} 2...
d6 {[%clk 0:02:47.4]} 3. d4 {[%clk 0:02:58.7]} 3... cxd4 {[%clk 0:02:48.3]} 4.
Nxd4 {[%clk 0:02:59.4]} 4... Nf6 {[%clk 0:02:48.9]} 5. Nc3 {[%clk 0:02:59.6]}
5... a6 {[%clk 0:02:49.3]} 6. f3 {[%clk 0:03:00.1]} 6... e5 {[%clk 0:02:48.3]}
7. Nb3 {[%clk 0:03:00.3]} 7... Be7 {[%clk 0:02:45.8]} 8. Be3 {[%clk 0:03:00.9]}
8... Be6 {[%clk 0:02:44.7]} 9. Qd2 {[%clk 0:03:00.4]} 9... h5 {[%clk 0:02:45.3]}
10. Nd5 {[%clk 0:02:58.7]} 10... Nxd5 {[%clk 0:02:45]} 11. exd5 {[%clk
0:02:59.6]} 11... Bf5 {[%clk 0:02:45.8]} 12. c4 {[%clk 0:02:55.6]} 12... a5
{[%clk 0:02:39.7]} 13. Be2 {[%clk 0:02:48.3]} 13... a4 {[%clk 0:02:38.7]} 14.
Nc1 {[%clk 0:02:48.1]} 14... Nd7 {[%clk 0:02:37.9]} 15. O-O {[%clk 0:02:44.1]}
15... Qa5 {[%clk 0:02:37.1]} 16. Qxa5 {[%clk 0:02:22.6]} 16... Rxa5 {[%clk
0:02:35.1]} 17. Bd3 {[%clk 0:02:23.5]} 17... Bxd3 {[%clk 0:02:28.3]} 18. Nxd3
{[%clk 0:02:23.4]} 18... O-O {[%clk 0:02:25.4]} 19. b4 {[%clk 0:02:15.6]} 19...
axb3 {[%clk 0:02:24.7]} 20. axb3 {[%clk 0:02:16.5]} 20... Rfa8 {[%clk
0:02:24.5]} 21. Rxa5 {[%clk 0:02:14.7]} 21... Rxa5 {[%clk 0:02:25.4]} 22. Rc1
{[%clk 0:01:55.7]} 22... f5 {[%clk 0:02:11.5]} 23. Rc2 {[%clk 0:01:53.7]} 23...
g5 {[%clk 0:02:01.1]} 24. Kf2 {[%clk 0:01:52.7]} 24... g4 {[%clk 0:02:00.5]} 25.
Ke2 {[%clk 0:01:45.1]} 25... Kf7 {[%clk 0:01:40.4]} 26. b4 {[%clk 0:01:43.4]}
26... Ra3 {[%clk 0:01:32.4]} 27. c5 {[%clk 0:01:42.4]} 27... e4 {[%clk 0:00:47]}
28. fxe4 {[%clk 0:01:37.2]} 28... fxe4 {[%clk 0:00:45.6]} 29. Nf4 {[%clk
0:01:37.1]} 29... Ne5 {[%clk 0:00:31.2]} 30. c6 {[%clk 0:01:29.6]} 30... bxc6
{[%clk 0:00:30.2]} 31. dxc6 {[%clk 0:01:29.6]} 31... Ra8 {[%clk 0:00:19.7]} 32.
b5 {[%clk 0:01:23.5]} 32... Ke8 {[%clk 0:00:18.9]} 33. b6 {[%clk 0:01:21.7]}
33... Nxc6 {[%clk 0:00:08.6]} 34. Rxc6 {[%clk 0:01:21.6]} 34... Bd8 {[%clk
0:00:08.9]} 35. Rxd6 {[%clk 0:01:17.3]} 35... Ra2+ {[%clk 0:00:09.3]} 36. Kd1
{[%clk 0:01:15.2]} 36... Rb2 {[%clk 0:00:09.2]} 37. Re6+ {[%clk 0:01:08.2]}
37... Kd7 {[%clk 0:00:09.1]} 38. Rxe4 {[%clk 0:01:08.2]} 38... Bxb6 {[%clk
0:00:08.7]} 39. Bxb6 {[%clk 0:01:08.1]} 39... Rxb6 {[%clk 0:00:09.6]} 40. Nxh5
{[%clk 0:01:07.3]} 40... Rh6 {[%clk 0:00:09.6]} 41. Re5 {[%clk 0:00:58.8]} 41...
Kd6 {[%clk 0:00:07.9]} 42. Ra5 {[%clk 0:00:51.6]} 42... Rh8 {[%clk 0:00:05.7]}
43. Ke2 {[%clk 0:00:50.1]} 43... Ke6 {[%clk 0:00:05.2]} 44. Kf2 {[%clk
0:00:47.4]} 44... Kf7 {[%clk 0:00:05.7]} 45. Kg3 {[%clk 0:00:46.8]} 45... Rg8
{[%clk 0:00:02.3]} 46. Ra7+ {[%clk 0:00:44.8]} 46... Kg6 {[%clk 0:00:01.8]} 47.
Nf4+ {[%clk 0:00:45.1]} 47... Kf5 {[%clk 0:00:02]} 48. Ra5+ {[%clk 0:00:44.9]}
48... Ke4 {[%clk 0:00:01.6]} 49. Ra4+ {[%clk 0:00:43.9]} 49... Ke3 {[%clk
0:00:02.2]} 50. Nh5 {[%clk 0:00:42]} 50... Rh8 {[%clk 0:00:02.5]} 51. Nf6 {[%clk
0:00:40.5]} 51... Rh6 {[%clk 0:00:02.5]} 52. Nxg4+ {[%clk 0:00:40.6]} 52... Ke2
{[%clk 0:00:03.3]} 53. Nxh6 {[%clk 0:00:41]} 53... Ke1 {[%clk 0:00:04.2]} 54. h4
{[%clk 0:00:41.4]} 54... Ke2 {[%clk 0:00:05.1]} 55. h5 {[%clk 0:00:42]} 55...
Ke3 {[%clk 0:00:05.6]} 56. Ng4+ {[%clk 0:00:42.7]} 56... Kd3 {[%clk 0:00:06.5]}
57. h6 {[%clk 0:00:43.6]} 57... Kc3 {[%clk 0:00:07.4]} 58. Rf4 {[%clk
0:00:43.2]} 58... Kb3 {[%clk 0:00:08.3]} 59. h7 {[%clk 0:00:44]} 59... Kc3
{[%clk 0:00:09]} 60. h8=Q+ {[%clk 0:00:44.1]} 60... Kd3 {[%clk 0:00:09.9]} 61.
Qd4+ {[%clk 0:00:43.5]} 61... Kc2 {[%clk 0:00:09.5]} 62. Rf2+ {[%clk 0:00:39.3]}
62... Kb3 {[%clk 0:00:09.8]} 63. Rb2+ {[%clk 0:00:38.5]} 63... Ka3 {[%clk
0:00:10.7]} 64. Qb4# {[%clk 0:00:27.4]} 1-0

[Event "Early-Titled-Tuesday-Blitz-August-29-2023"]
[Site "Chess.com"]
[Date "2023.08.29"]
[Round "10"]
[White "viktorgen2021"]
[Black "leopato"]
[Result "1-0"]
[WhiteElo "2444"]
[BlackElo "2172"]
[TimeControl "180+1"]
[EndTime "9:53:59 PDT"]
[Termination "viktorgen2021 won on time"]

1. e4 {[%clk 0:02:53.1]} 1... c5 {[%clk 0:02:59.8]} 2. g3 {[%clk 0:02:52]} 2...
d5 {[%clk 0:02:59.3]} 3. Bg2 {[%clk 0:02:50.9]} 3... dxe4 {[%clk 0:02:59]} 4.
Bxe4 {[%clk 0:02:50.2]} 4... Nf6 {[%clk 0:02:58.7]} 5. Bg2 {[%clk 0:02:49.6]}
5... e5 {[%clk 0:02:58.4]} 6. Nc3 {[%clk 0:02:48.9]} 6... Nc6 {[%clk 0:02:57.6]}
7. d3 {[%clk 0:02:48.9]} 7... h6 {[%clk 0:02:56.9]} 8. h3 {[%clk 0:02:47.9]}
8... Bd6 {[%clk 0:02:56.4]} 9. Nge2 {[%clk 0:02:46.3]} 9... O-O {[%clk
0:02:55.9]} 10. O-O {[%clk 0:02:46.8]} 10... Be6 {[%clk 0:02:55.9]} 11. Be3
{[%clk 0:02:42.2]} 11... Qd7 {[%clk 0:02:55.6]} 12. Kh2 {[%clk 0:02:41.3]} 12...
Rad8 {[%clk 0:02:55.5]} 13. Ne4 {[%clk 0:02:38.5]} 13... Nxe4 {[%clk 0:02:54.9]}
14. dxe4 {[%clk 0:02:37.5]} 14... Qc8 {[%clk 0:02:51]} 15. Nc3 {[%clk
0:02:35.6]} 15... Nd4 {[%clk 0:02:48.9]} 16. Nd5 {[%clk 0:02:31.9]} 16... Bxd5
{[%clk 0:02:47.8]} 17. exd5 {[%clk 0:02:31.5]} 17... f5 {[%clk 0:02:44.4]} 18.
c3 {[%clk 0:02:24.5]} 18... Nb5 {[%clk 0:02:43]} 19. a4 {[%clk 0:02:24.3]} 19...
Nc7 {[%clk 0:02:42.9]} 20. f4 {[%clk 0:02:22.7]} 20... e4 {[%clk 0:02:40]} 21.
Qb3 {[%clk 0:02:11.2]} 21... Kh8 {[%clk 0:02:36.3]} 22. Rf2 {[%clk 0:02:09.6]}
22... b6 {[%clk 0:02:32.8]} 23. Bf1 {[%clk 0:02:08.4]} 23... Qb7 {[%clk
0:02:21.9]} 24. Bc4 {[%clk 0:02:05]} 24... a6 {[%clk 0:02:19.2]} 25. Rd1 {[%clk
0:02:00]} 25... b5 {[%clk 0:02:18.1]} 26. axb5 {[%clk 0:01:58.6]} 26... axb5
{[%clk 0:02:18.1]} 27. Bf1 {[%clk 0:01:59.3]} 27... Rb8 {[%clk 0:02:09.7]} 28.
Rfd2 {[%clk 0:01:54]} 28... Rfd8 {[%clk 0:02:03.9]} 29. Qc2 {[%clk 0:01:51.7]}
29... c4 {[%clk 0:01:58]} 30. g4 {[%clk 0:01:48.8]} 30... fxg4 {[%clk
0:01:54.8]} 31. hxg4 {[%clk 0:01:42.7]} 31... Rf8 {[%clk 0:01:53.5]} 32. Kg1
{[%clk 0:01:30.9]} 32... Bxf4 {[%clk 0:01:49.8]} 33. Bc5 {[%clk 0:01:28]} 33...
Bxd2 {[%clk 0:01:34]} 34. Rxd2 {[%clk 0:01:19.2]} 34... Rf4 {[%clk 0:01:21.4]}
35. Qd1 {[%clk 0:01:10.9]} 35... Rbf8 {[%clk 0:01:19.7]} 36. Be2 {[%clk
0:01:07.7]} 36... R8f7 {[%clk 0:01:14.8]} 37. Be3 {[%clk 0:01:06.2]} 37... Nxd5
{[%clk 0:01:09]} 38. Rxd5 {[%clk 0:01:02.6]} 38... R4f6 {[%clk 0:00:59.6]} 39.
g5 {[%clk 0:00:56.8]} 39... Rf5 {[%clk 0:00:34.4]} 40. Rd8+ {[%clk 0:00:46.3]}
40... Kh7 {[%clk 0:00:34.1]} 41. Qd6 {[%clk 0:00:41.4]} 41... g6 {[%clk
0:00:19]} 42. Qd4 {[%clk 0:00:25.3]} 42... Rg7 {[%clk 0:00:17.6]} 43. gxh6
{[%clk 0:00:24.9]} 43... Rff7 {[%clk 0:00:09.8]} 44. hxg7 {[%clk 0:00:23.7]}
44... Rxg7 {[%clk 0:00:09.8]} 45. Qf6 {[%clk 0:00:18.6]} 45... g5 {[%clk
0:00:02.1]} 46. Bxg5 {[%clk 0:00:09.3]} 1-0